bitfinex-derivatives/quotes_BTCF0:USTF0_20250719
["timestamp","ask_amount","ask_price","bid_price","bid_amount"]
[1752893171315,0.7956205,118250.0,118240.0,1.12177292]
[1752893171516,0.7956205,118250.0,118240.0,0.82033292]
[1752893171717,0.7956205,118250.0,118240.0,0.96317044]
[1752893171917,0.7956205,118250.0,118240.0,1.12245292]
[1752893173922,0.7956205,118250.0,118240.0,0.96317044]
[1752893174110,0.7956205,118250.0,118240.0,1.12245292]
[1752893175219,0.7956205,118250.0,118240.0,0.96317044]
[1752893175521,0.7956205,118250.0,118240.0,1.12245292]
[1752893176817,0.57682,118250.0,118240.0,1.14876292]
[1752893177017,0.43677812,118280.0,118240.0,1.14876292]
[1752893177018,0.48148983,118280.0,118260.0,0.1194282]
[1752893177223,0.06080691,118280.0,118270.0,1.11473438]
[1752893177817,0.2609939,118290.0,118280.0,0.2820176]
[1752893178023,0.2187531,118290.0,118280.0,0.45200008]
[1752893178329,0.2187531,118290.0,118280.0,0.81280008]
[1752893179021,0.2584131,118290.0,118280.0,0.81280008]
[1752893179216,0.2955731,118290.0,118280.0,0.81280008]
[1752893179422,0.7955731,118290.0,118280.0,0.81280008]
[1752893179621,0.8005731,118290.0,118280.0,0.81280008]
[1752893183525,0.63161,118290.0,118280.0,0.81280008]
[1752893184025,0.8005633,118290.0,118280.0,0.81280008]
[1752893184526,0.8045633,118290.0,118280.0,0.6535176]
[1752893184824,0.8045633,118290.0,118280.0,0.81280008]
[1752893186727,0.8045633,118290.0,118280.0,0.6535176]
[1752893187123,0.8045633,118290.0,118280.0,0.81280008]
[1752893188722,0.8045633,118290.0,118280.0,0.45200008]
[1752893189023,0.01373479,118300.0,118280.0,0.82213905]
[1752893189224,0.12014506,118310.0,118300.0,0.255669]
[1752893189422,0.12014506,118310.0,118300.0,0.87236548]
[1752893190028,0.10930643,118320.0,118310.0,0.3100348]
[1752893190329,0.0486825,118320.0,118310.0,1.13111728]
[1752893191126,0.15006643,118320.0,118310.0,1.13111728]
[1752893191528,0.65006643,118320.0,118310.0,1.13111728]
[1752893191726,0.70064643,118320.0,118310.0,1.13111728]
[1752893191927,0.70731643,118320.0,118310.0,1.13111728]
[1752893192126,0.70731643,118320.0,118310.0,0.9718348]
[1752893192127,0.72014643,118320.0,118310.0,0.9718348]
[1752893192322,0.828433,118320.0,118310.0,1.14434715]
[1752893193328,0.828433,118320.0,118310.0,1.14634715]
[1752893194628,0.98771548,118320.0,118310.0,0.98706467]
[1752893196230,1.04833941,118320.0,118310.0,0.98706467]
[1752893196830,0.88905693,118320.0,118310.0,0.98706467]
[1752893197132,1.04833941,118320.0,118310.0,0.98706467]
[1752893197831,0.98771548,118320.0,118310.0,0.98706467]
[1752893198628,0.828433,118320.0,118310.0,0.98706467]
[1752893201628,0.828433,118320.0,118310.0,0.98695916]
[1752893201932,0.828433,118320.0,118310.0,0.62615916]
[1752893202128,0.828433,118320.0,118310.0,0.98695916]
[1752893202433,0.98771548,118320.0,118310.0,0.98695916]
[1752893203034,0.828433,118320.0,118310.0,0.98695916]
[1752893204233,1.14699796,118320.0,118310.0,0.31622987]
[1752893205133,0.98771548,118320.0,118310.0,0.31622987]
[1752893205329,0.98771548,118320.0,118310.0,0.01522987]
[1752893205537,1.04833941,118320.0,118310.0,0.31618987]
[1752893206230,0.98771548,118320.0,118310.0,0.31618987]
[1752893206629,1.04834316,118320.0,118310.0,0.31618987]
[1752893207327,0.98771548,118320.0,118310.0,0.31618987]
[1752893207632,0.98771548,118320.0,118310.0,0.30296]
[1752893207831,1.56843905,118320.0,118310.0,0.30296]
[1752893208132,1.56843905,118320.0,118310.0,0.002]
[1752893208827,1.63767093,118320.0,118310.0,0.002]
[1752893209026,1.65263138,118320.0,118310.0,0.002]
[1752893212238,1.65263138,118320.0,118310.0,0.00082814]
[1752893214138,1.5833995,118320.0,118310.0,0.00082814]
[1752893216540,1.26483454,118320.0,118310.0,0.00082814]
[1752893216735,1.42411702,118320.0,118310.0,0.00082814]
[1752893216943,1.5833995,118320.0,118310.0,0.00082814]
[1752893217442,1.72463702,118320.0,118310.0,0.00082814]
[1752893217941,1.42411702,118320.0,118310.0,0.00082814]
[1752893218234,1.72467702,118320.0,118310.0,0.00082814]
[1752893218639,1.36387702,118320.0,118310.0,0.00082814]
[1752893218836,1.06331702,118320.0,118310.0,0.29304284]
[1752893219035,0.90403454,118320.0,118310.0,0.78845532]
[1752893219232,0.90403454,118320.0,118310.0,1.14925532]
[1752893219638,0.828433,118320.0,118310.0,1.14925532]
[1752893220737,0.828433,118320.0,118310.0,0.78845532]
[1752893220946,0.88919269,118320.0,118310.0,1.14925532]
[1752893221338,0.87185019,118320.0,118310.0,1.14925532]
[1752893221533,0.82467019,118320.0,118310.0,1.14925532]
[1752893222347,0.86348019,118320.0,118310.0,1.14925532]
[1752893222537,0.87722019,118320.0,118310.0,1.14925532]
[1752893225439,0.85641019,118320.0,118310.0,1.14925532]
[1752893225739,0.80377019,118320.0,118310.0,1.14925532]
[1752893226344,0.82704019,118320.0,118310.0,1.14925532]
[1752893227045,0.85878019,118320.0,118310.0,1.14925532]
[1752893227845,0.85878019,118320.0,118310.0,0.98997284]
[1752893228054,0.87959019,118320.0,118310.0,1.14925532]
[1752893228645,0.86585019,118320.0,118310.0,1.14925532]
[1752893229241,0.87959019,118320.0,118310.0,1.14925532]
[1752893232952,0.94772929,118320.0,118310.0,1.14925532]
[1752893234249,0.87959019,118320.0,118310.0,1.14925532]
[1752893234747,0.68986969,118320.0,118310.0,1.14925532]
[1752893234958,0.59409969,118320.0,118310.0,1.14925532]
[1752893235146,0.80909869,118320.0,118310.0,1.14925532]
[1752893235345,0.86410869,118320.0,118310.0,1.14925532]
[1752893235551,0.502,118320.0,118310.0,1.14925532]
[1752893235951,0.002,118320.0,118310.0,1.14925532]
[1752893236551,0.0378,118320.0,118310.0,1.14925532]
[1752893236748,0.002,118320.0,118310.0,1.14925532]
[1752893237254,0.002,118320.0,118310.0,1.44445532]
[1752893238058,0.06275969,118320.0,118310.0,1.44445532]
[1752893239147,0.002,118320.0,118310.0,1.44445532]
[1752893239656,0.06275969,118320.0,118310.0,1.44445532]
[1752893240256,0.002,118320.0,118310.0,1.44445532]
[1752893242653,0.1709089,118320.0,118310.0,1.44445532]
[1752893244157,0.2067089,118320.0,118310.0,1.44445532]
[1752893244761,0.1709089,118320.0,118310.0,1.44445532]
[1752893246759,0.002,118320.0,118310.0,1.44445532]
[1752893247563,0.03541,118320.0,118310.0,1.44445532]
[1752893247963,0.2043189,118320.0,118310.0,1.44445532]
[1752893248563,0.1709089,118320.0,118310.0,1.44445532]
[1752893249663,0.1689089,118320.0,118310.0,1.44445532]
[1752893249867,0.1689089,118320.0,118310.0,1.44462718]
[1752893250164,0.4098942,118330.0,118320.0,0.3324889]
[1752893250463,0.4098942,118330.0,118320.0,0.85257138]
[1752893251061,0.3676694,118330.0,118320.0,0.85257138]
[1752893251462,0.8676694,118330.0,118320.0,0.85257138]
[1752893251959,0.8107556,118330.0,118320.0,0.8713485]
[1752893252161,0.5,118330.0,118320.0,1.32583098]
[1752893252367,0.6698946,118330.0,118320.0,1.32583098]
[1752893252664,0.501,118330.0,118320.0,1.1665485]
[1752893253063,0.001,118330.0,118320.0,1.1665485]
[1752893253459,0.1698946,118330.0,118320.0,1.1665485]
[1752893253663,0.2033046,118330.0,118320.0,1.1665485]
[1752893253860,0.2508046,118330.0,118320.0,1.1665485]
[1752893254471,0.2508046,118330.0,118320.0,1.00726602]
[1752893254669,0.2508046,118330.0,118320.0,1.1665485]
[1752893255169,0.2508046,118330.0,118320.0,1.32583098]
[1752893255869,0.2508046,118330.0,118320.0,1.1665485]
[1752893258068,0.08191,118330.0,118320.0,1.1665485]
[1752893258276,0.001,118330.0,118320.0,1.32583098]
[1752893258471,0.1698944,118330.0,118320.0,1.32583098]
[1752893258868,0.001,118330.0,118320.0,1.32583098]
[1752893259373,0.001,118330.0,118320.0,1.00726602]
[1752893259570,0.001,118330.0,118320.0,1.32583098]
[1752893259877,0.03441,118330.0,118320.0,1.32583098]
[1752893262378,0.001,118330.0,118320.0,1.32583098]
[1752893267083,0.001,118330.0,118320.0,1.00726602]
[1752893267282,0.001,118330.0,118320.0,1.32583098]
[1752893269277,0.1698937,118330.0,118320.0,1.32583098]
[1752893270687,0.001,118330.0,118320.0,1.32583098]
[1752893270884,0.169893,118330.0,118320.0,1.32583098]
[1752893271185,0.169893,118330.0,118320.0,1.48449399]
[1752893273387,0.203303,118330.0,118320.0,1.48449399]
[1752893273587,0.250803,118330.0,118320.0,1.48449399]
[1752893273886,0.250803,118330.0,118320.0,1.325418]
[1752893274586,0.275133,118330.0,118320.0,1.325418]
[1752893276788,0.275133,118330.0,118320.0,0.964618]
[1752893276989,0.275133,118330.0,118320.0,1.686218]
[1752893279193,0.306733,118330.0,118320.0,1.686218]
[1752893280493,0.54700868,118330.0,118320.0,1.0168]
[1752893280683,0.54700868,118330.0,118320.0,1.23542599]
[1752893280884,0.54700868,118330.0,118320.0,1.42934198]
[1752893281389,1.04700868,118330.0,118320.0,1.42934198]
[1752893281789,1.04700868,118330.0,118320.0,1.72622198]
[1752893282284,1.04700868,118330.0,118320.0,1.53230599]
[1752893282490,1.04700868,118330.0,118320.0,1.12649599]
[1752893282790,1.04700868,118330.0,118320.0,1.37210198]
[1752893283694,1.04700868,118330.0,118320.0,1.54100908]
[1752893284189,1.04700868,118330.0,118320.0,1.37210198]
[1752893284390,1.04700868,118330.0,118320.0,1.07690198]
[1752893284791,0.88793269,118330.0,118320.0,1.60660908]
[1752893284992,0.827173,118330.0,118320.0,1.60660908]
[1752893285490,0.827173,118330.0,118320.0,1.62566789]
[1752893285795,0.88793269,118330.0,118320.0,1.62566789]
[1752893286885,0.95713362,118330.0,118320.0,1.4666116]
[1752893287799,0.95713362,118330.0,118320.0,1.62570729]
[1752893287996,0.39637393,118330.0,118320.0,1.62570729]
[1752893288394,0.39637393,118330.0,118320.0,1.4666116]
[1752893290898,0.39637393,118330.0,118320.0,1.62570729]
[1752893291397,0.39637393,118330.0,118320.0,1.4666116]
[1752893291994,0.327173,118330.0,118320.0,1.62570729]
[1752893292300,0.306733,118330.0,118320.0,1.62570729]
[1752893293101,0.306733,118330.0,118320.0,1.62594729]
[1752893294403,0.306733,118330.0,118320.0,1.30775591]
[1752893294603,0.306733,118330.0,118320.0,1.62594729]
[1752893296303,0.306733,118330.0,118320.0,1.92114729]
[1752893296899,0.306733,118330.0,118320.0,1.60295591]
[1752893297097,0.306733,118330.0,118320.0,1.92114729]
[1752893304304,0.001,118330.0,118320.0,1.92114729]
[1752893306912,0.001,118330.0,118320.0,2.08015112]
[1752893308214,0.001,118330.0,118320.0,1.78495112]
[1752893308611,0.06175969,118330.0,118320.0,1.78495112]
[1752893309814,0.06175969,118330.0,118320.0,1.62588605]
[1752893311117,0.09540969,118330.0,118320.0,1.62588605]
[1752893313921,0.09540969,118330.0,118320.0,1.92108605]
[1752893314726,0.26430249,118330.0,118320.0,1.92108605]
[1752893314922,0.36475249,118330.0,118320.0,1.92108605]
[1752893315129,0.54452756,118330.0,118320.0,1.03840881]
[1752893315430,0.48376787,118330.0,118320.0,1.39959058]
[1752893315727,0.38550492,118330.0,118320.0,1.91945565]
[1752893316226,0.88550492,118330.0,118320.0,1.91945565]
[1752893317931,0.8247028,118330.0,118320.0,1.91945565]
[1752893318426,0.8247028,118330.0,118320.0,1.60132551]
[1752893318627,0.8247028,118330.0,118320.0,1.91945565]
[1752893319924,0.8247028,118330.0,118320.0,1.62425565]
[1752893323027,0.501,118330.0,118320.0,1.78332072]
[1752893323234,0.501,118330.0,118320.0,1.62425565]
[1752893323532,0.7035424,118330.0,118320.0,1.62425565]
[1752893323731,0.7500824,118330.0,118320.0,1.62425565]
[1752893323931,0.7734224,118330.0,118320.0,1.62425565]
[1752893324635,0.3039924,118330.0,118320.0,1.62425565]
[1752893325434,0.3247024,118330.0,118320.0,1.62425565]
[1752893327132,0.3247024,118330.0,118320.0,1.30612551]
[1752893327438,0.3247024,118330.0,118320.0,1.62425565]
[1752893328135,0.15581,118330.0,118320.0,1.62425565]
[1752893328331,0.14173,118330.0,118320.0,1.62425565]
[1752893328528,0.3106224,118330.0,118320.0,1.62425565]
[1752893329239,0.3106224,118330.0,118320.0,1.30612551]
[1752893329436,0.3106224,118330.0,118320.0,1.62425565]
[1752893329741,0.3247024,118330.0,118320.0,1.62425565]
[1752893335243,0.3106224,118330.0,118320.0,1.62425565]
[1752893337034,0.3106224,118330.0,118320.0,1.30612551]
[1752893337234,0.3106224,118330.0,118320.0,1.62425565]
[1752893341141,0.3244024,118330.0,118320.0,1.62425565]
[1752893342845,0.3244024,118330.0,118320.0,0.96442561]
[1752893343041,0.48346747,118330.0,118320.0,1.12349068]
[1752893343443,0.48346747,118330.0,118320.0,0.95458388]
[1752893343644,0.48346747,118330.0,118320.0,0.98642388]
[1752893343845,0.48346747,118330.0,118320.0,1.11364895]
[1752893344045,0.48346747,118330.0,118320.0,1.28255575]
[1752893345243,0.56121182,118330.0,118320.0,0.72098881]
[1752893345448,0.56121182,118330.0,118320.0,0.83604388]
[1752893345647,0.56121182,118330.0,118320.0,1.02456068]
[1752893345851,1.06121182,118330.0,118320.0,0.91780561]
[1752893346042,1.06121182,118330.0,118320.0,1.12269068]
[1752893346238,1.06121182,118330.0,118320.0,0.96362561]
[1752893346446,1.06121182,118330.0,118320.0,1.15553068]
[1752893346643,1.06121182,118330.0,118320.0,1.31455575]
[1752893349253,1.06121182,118330.0,118320.0,0.99642561]
[1752893349448,1.06121182,118330.0,118320.0,1.31455575]
[1752893349854,1.06121182,118330.0,118320.0,0.99642561]
[1752893350053,1.06121182,118330.0,118320.0,1.15549068]
[1752893350254,0.90214675,118330.0,118320.0,1.12365068]
[1752893350455,1.06121182,118330.0,118320.0,1.12365068]
[1752893350853,1.06121182,118330.0,118320.0,1.15549068]
[1752893351449,0.90214675,118330.0,118320.0,1.15549068]
[1752893351649,1.06121182,118330.0,118320.0,1.15549068]
[1752893351954,1.06121182,118330.0,118320.0,1.31455575]
[1752893353558,1.06121182,118330.0,118320.0,1.31391575]
[1752893355556,0.90214675,118330.0,118320.0,1.31391575]
[1752893355758,1.06121182,118330.0,118320.0,1.31391575]
[1752893355951,1.06121182,118330.0,118320.0,1.31375575]
[1752893356358,0.90214675,118330.0,118320.0,1.31375575]
[1752893356658,1.06121182,118330.0,118320.0,1.31375575]
[1752893358160,1.07601124,118330.0,118320.0,1.31375575]
[1752893358358,1.0004097,118330.0,118320.0,1.31375575]
[1752893358660,1.0004097,118330.0,118320.0,1.15469068]
[1752893361161,1.06121578,118330.0,118320.0,1.15469068]
[1752893362461,1.06121578,118330.0,118320.0,0.99562561]
[1752893362662,1.06121578,118330.0,118320.0,1.15469068]
[1752893363465,1.0004097,118330.0,118320.0,1.15469068]
[1752893364565,1.0004097,118330.0,118320.0,0.98578388]
[1752893364765,1.06121942,118330.0,118320.0,0.98578388]
[1752893365064,1.06121942,118330.0,118320.0,1.15469098]
[1752893365264,1.0004097,118330.0,118320.0,1.15469098]
[1752893365667,1.0004097,118330.0,118320.0,0.69674881]
[1752893365964,1.06122152,118330.0,118320.0,1.02472098]
[1752893366358,1.06122152,118330.0,118320.0,1.06647098]
[1752893366764,1.06122152,118330.0,118320.0,1.11675098]
[1752893367368,1.06122152,118330.0,118320.0,0.94784388]
[1752893368364,1.06122152,118330.0,118320.0,0.65088388]
[1752893368567,1.06122152,118330.0,118320.0,0.94784388]
[1752893369270,1.06122152,118330.0,118320.0,1.11675098]
[1752893370069,1.06122152,118330.0,118320.0,0.94784388]
[1752893370370,1.06122152,118330.0,118320.0,1.11675098]
[1752893370664,1.06122152,118330.0,118320.0,0.78877881]
[1752893370870,1.06122152,118330.0,118320.0,0.76972]
[1752893371070,1.06122152,118330.0,118320.0,0.92878507]
[1752893371865,1.06122152,118330.0,118320.0,1.09769217]
[1752893372169,0.90215645,118330.0,118320.0,1.29081724]
[1752893372672,1.06122152,118330.0,118320.0,1.29081724]
[1752893374270,0.90215645,118330.0,118320.0,1.29081724]
[1752893374466,1.06122152,118330.0,118320.0,1.29081724]
[1752893375767,0.78129645,118330.0,118320.0,1.29081724]
[1752893375972,0.72048463,118330.0,118320.0,1.29081724]
[1752893376167,0.22048463,118330.0,118320.0,1.29081724]
[1752893376467,0.26279463,118330.0,118320.0,1.29081724]
[1752893377470,0.28424463,118330.0,118320.0,1.29081724]
[1752893377670,0.28424463,118330.0,118320.0,1.65161724]
[1752893378171,0.4920597,118330.0,118320.0,1.19487217]
[1752893378471,0.4920597,118330.0,118320.0,1.65117724]
[1752893379167,0.55287152,118330.0,118320.0,1.65117724]
[1752893379465,0.55287152,118330.0,118320.0,1.29037724]
[1752893380072,0.55287152,118330.0,118320.0,0.9722471]
[1752893380270,0.39380645,118330.0,118320.0,1.29037724]
[1752893380572,0.4920597,118330.0,118320.0,1.13131217]
[1752893381069,0.4920597,118330.0,118320.0,0.9722471]
[1752893381269,0.4920597,118330.0,118320.0,1.29037724]
[1752893381478,0.4920597,118330.0,118320.0,1.13131217]
[1752893381770,0.4920597,118330.0,118320.0,0.80334]
[1752893381974,0.4920597,118330.0,118320.0,0.85793507]
[1752893382177,0.4920597,118330.0,118320.0,0.88731507]
[1752893382669,0.4920597,118330.0,118320.0,0.92906507]
[1752893382869,0.9920597,118330.0,118320.0,0.92906507]
[1752893383170,0.9920597,118330.0,118320.0,0.63182507]
[1752893383370,0.9920597,118330.0,118320.0,0.92906507]
[1752893383975,0.9920597,118330.0,118320.0,1.13131217]
[1752893384676,0.9920597,118330.0,118320.0,0.9722471]
[1752893384876,0.9920597,118330.0,118320.0,1.13131217]
[1752893385376,0.9920597,118330.0,118320.0,0.96240507]
[1752893386175,0.9920597,118330.0,118320.0,1.13131217]
[1752893386576,0.9920597,118330.0,118320.0,0.96240507]
[1752893386872,0.14504,118320.0,118310.0,0.08244]
[1752893387176,1.34044501,118320.0,118310.0,0.29708]
[1752893387369,0.97964501,118320.0,118310.0,0.29708]
[1752893387566,1.34044501,118320.0,118310.0,0.29708]
[1752893387868,0.2258013,118310.0,118300.0,0.77211866]
[1752893388072,0.48981987,118310.0,118300.0,0.81386866]
[1752893388273,0.48981987,118310.0,118300.0,1.11086866]
[1752893388472,0.48981987,118310.0,118300.0,1.14420866]
[1752893388668,0.48981987,118310.0,118300.0,0.98514359]
[1752893388967,0.48981987,118310.0,118300.0,1.14420866]
[1752893389172,0.48981987,118310.0,118300.0,1.14520866]
[1752893390078,0.98981987,118310.0,118300.0,1.14620866]
[1752893390271,0.8307548,118310.0,118300.0,1.30527373]
[1752893390475,0.8307548,118310.0,118300.0,0.98714359]
[1752893390676,0.98981987,118310.0,118300.0,1.30527373]
[1752893390880,0.8307548,118310.0,118300.0,1.30527373]
[1752893391070,0.98981987,118310.0,118300.0,1.30527373]
[1752893391768,0.98981987,118310.0,118300.0,0.98714359]
[1752893392075,0.98981987,118310.0,118300.0,1.30527373]
[1752893392579,0.98981987,118310.0,118300.0,1.00827373]
[1752893392778,0.98981987,118310.0,118300.0,1.30527373]
[1752893392980,0.8307548,118310.0,118300.0,1.14630394]
[1752893393775,0.8307548,118310.0,118300.0,0.78550394]
[1752893393979,0.8307548,118310.0,118300.0,1.14630394]
[1752893396984,0.8307548,118310.0,118300.0,0.84930394]
[1752893397183,0.8307548,118310.0,118300.0,1.14634394]
[1752893398077,0.89156662,118310.0,118300.0,1.14634394]
[1752893400282,0.87824662,118310.0,118300.0,1.14634394]
[1752893400478,0.56081182,118310.0,118300.0,1.14634394]
[1752893401190,0.06081182,118310.0,118300.0,1.14634394]
[1752893401686,0.06081182,118310.0,118300.0,0.98718359]
[1752893401890,0.06081182,118310.0,118300.0,1.14634394]
[1752893405694,0.06081182,118310.0,118300.0,1.44154394]
[1752893408096,0.2431277,118320.0,118310.0,0.2249613]
[1752893408097,0.30393952,118320.0,118310.0,0.2249613]
[1752893408298,0.30393952,118320.0,118310.0,0.83254165]
[1752893408691,0.30392892,118320.0,118310.0,0.83254165]
[1752893408891,0.2431171,118320.0,118310.0,0.83254165]
[1752893411795,0.2431171,118320.0,118310.0,0.83354165]
[1752893412094,0.2431171,118320.0,118310.0,0.83454165]
[1752893414198,0.1689071,118320.0,118310.0,0.96122635]
[1752893414393,0.1689071,118320.0,118310.0,0.88711635]
[1752893414593,0.2017171,118320.0,118310.0,0.88711635]
[1752893414799,0.2431171,118320.0,118310.0,0.88711635]
[1752893414993,0.2431171,118320.0,118310.0,0.96118852]
[1752893415296,0.2431171,118320.0,118310.0,0.802066]
[1752893415496,0.2431171,118320.0,118310.0,0.96118852]
[1752893416596,0.2643971,118320.0,118310.0,0.96118852]
[1752893417297,0.2643971,118320.0,118310.0,0.802066]
[1752893417497,0.2923271,118320.0,118310.0,0.96118852]
[1752893417897,0.2923271,118320.0,118310.0,0.91895912]
[1752893419797,0.3053771,118320.0,118310.0,0.91895912]
[1752893421101,0.3053771,118320.0,118310.0,0.87673112]
[1752893421299,0.47135962,118320.0,118310.0,0.87673112]
[1752893421999,0.53214745,118320.0,118310.0,0.87673112]
[1752893422400,0.37302493,118320.0,118310.0,0.87673112]
[1752893422699,0.53214745,118320.0,118310.0,0.87673112]
[1752893423000,0.53214745,118320.0,118310.0,0.7176086]
[1752893423300,0.53214745,118320.0,118310.0,0.87673112]
[1752893423699,0.53214745,118320.0,118310.0,0.7176086]
[1752893424101,0.37302493,118320.0,118310.0,0.87673112]
[1752893424302,0.53214745,118320.0,118310.0,0.87673112]
[1752893426602,0.53214745,118320.0,118310.0,0.7176086]
[1752893426804,0.53214745,118320.0,118310.0,0.87673112]
[1752893427904,0.53214745,118320.0,118310.0,0.7176086]
[1752893428203,0.53214745,118320.0,118310.0,0.87673112]
[1752893428802,0.47135962,118320.0,118310.0,0.87673112]
[1752893431005,0.47135962,118320.0,118310.0,0.7176086]
[1752893431209,0.47135962,118320.0,118310.0,0.87673112]
[1752893432409,0.53214745,118320.0,118310.0,0.87673112]
[1752893432908,0.47135962,118320.0,118310.0,0.87673112]
[1752893436212,0.2643971,118320.0,118310.0,0.87673112]
[1752893436413,0.47164962,118320.0,118310.0,0.87673112]
[1752893436613,0.45916962,118320.0,118310.0,0.87673112]
[1752893437817,0.3000471,118320.0,118310.0,0.87673112]
[1752893438016,0.45916962,118320.0,118310.0,0.87673112]
[1752893438413,0.2017171,118320.0,118310.0,0.87673112]
[1752893438619,0.63388568,118330.0,118320.0,0.2255871]
[1752893438820,0.63388568,118330.0,118320.0,1.12910962]
[1752893440024,1.13388568,118330.0,118320.0,1.12910962]
[1752893447032,0.97476316,118330.0,118320.0,1.12910962]
[1752893447230,1.13388568,118330.0,118320.0,1.12910962]
[1752893448132,1.14908264,118330.0,118320.0,1.12910962]
[1752893448427,1.14908264,118330.0,118320.0,0.76830962]
[1752893448632,1.14908264,118330.0,118320.0,1.12910962]
[1752893449730,1.14908264,118330.0,118320.0,0.9699871]
[1752893449930,1.14908264,118330.0,118320.0,1.12910962]
[1752893451636,1.14908264,118330.0,118320.0,0.42989]
[1752893451935,1.07309785,118330.0,118320.0,0.5863871]
[1752893452135,1.07309785,118330.0,118320.0,0.8328671]
[1752893453136,1.07309785,118330.0,118320.0,0.8452771]
[1752893455141,1.07309785,118330.0,118320.0,0.8955971]
[1752893455341,1.07309785,118330.0,118320.0,1.09793962]
[1752893455640,1.07309785,118330.0,118320.0,0.9388171]
[1752893455841,1.07309785,118330.0,118320.0,1.13074962]
[1752893456142,1.14908264,118330.0,118320.0,1.13074962]
[1752893457249,1.07309785,118330.0,118320.0,1.13074962]
[1752893457448,1.14908264,118330.0,118320.0,1.13074962]
[1752893457849,0.98996012,118330.0,118320.0,1.13074962]
[1752893458043,1.13393847,118330.0,118320.0,1.13074962]
[1752893460158,0.91397533,118330.0,118320.0,1.13074962]
[1752893460453,1.07309785,118330.0,118320.0,1.13074962]
[1752893463651,0.91397533,118330.0,118320.0,0.9716271]
[1752893463853,1.07309785,118330.0,118320.0,1.13074962]
[1752893464055,1.14915488,118330.0,118320.0,1.13074962]
[1752893465153,1.14915488,118330.0,118320.0,0.9716271]
[1752893465353,1.14915488,118330.0,118320.0,1.13074962]
[1752893466553,1.14915488,118330.0,118320.0,1.28987214]
[1752893466755,1.13221265,118330.0,118320.0,1.28987214]
[1752893467151,1.11973265,118330.0,118320.0,1.28987214]
[1752893467551,0.93699696,118330.0,118320.0,1.28987214]
[1752893467757,0.80346993,118330.0,118320.0,1.28987214]
[1752893468056,0.76171993,118330.0,118320.0,1.58507214]
[1752893468256,0.26171993,118330.0,118320.0,1.58507214]
[1752893468644,0.2008728,118330.0,118320.0,1.58507214]
[1752893469656,0.42621863,118340.0,118330.0,0.1963528]
[1752893469857,0.45684863,118340.0,118330.0,0.83322532]
[1752893470658,1.11597115,118340.0,118330.0,0.83322532]
[1752893470846,0.95684863,118340.0,118330.0,0.83322532]
[1752893471046,1.07674925,118340.0,118330.0,0.83322532]
[1752893471456,1.01590212,118340.0,118330.0,0.83322532]
[1752893473060,1.01590212,118340.0,118330.0,0.6741028]
[1752893473249,1.01590212,118340.0,118330.0,0.83322532]
[1752893475359,0.8145599,118340.0,118330.0,0.83322532]
[1752893476358,0.3145599,118340.0,118330.0,0.83322532]
[1752893477162,0.3145599,118340.0,118330.0,1.12986532]
[1752893477363,0.47368242,118340.0,118330.0,1.12986532]
[1752893477563,0.3145599,118340.0,118330.0,1.12986532]
[1752893478162,0.37540703,118340.0,118330.0,1.12986532]
[1752893478662,0.53452955,118340.0,118330.0,1.12986532]
[1752893479567,0.37540703,118340.0,118330.0,1.12986532]
[1752893480366,0.53452955,118340.0,118330.0,1.12986532]
[1752893481362,0.37540703,118340.0,118330.0,1.12986532]
[1752893481568,0.53452955,118340.0,118330.0,1.12986532]
[1752893481768,0.47368242,118340.0,118330.0,1.12986532]
[1752893482970,0.47368242,118340.0,118330.0,0.9707428]
[1752893483267,0.47368242,118340.0,118330.0,1.12986532]
[1752893484562,0.09735,118340.0,118330.0,1.12986532]
[1752893484769,0.09447713,118340.0,118330.0,0.9707428]
[1752893484970,0.09447713,118340.0,118330.0,1.12986532]
[1752893485470,0.13666713,118340.0,118330.0,1.12986532]
[1752893486769,0.07582,118340.0,118330.0,1.12986532]
[1752893487272,0.2446985,118340.0,118330.0,0.9707428]
[1752893487572,0.2446985,118340.0,118330.0,1.12986532]
[1752893487768,0.2446985,118340.0,118330.0,0.9707428]
[1752893487969,0.2446985,118340.0,118330.0,1.12986532]
[1752893490073,0.2446985,118340.0,118330.0,0.9707428]
[1752893490372,0.2920085,118340.0,118330.0,1.12986532]
[1752893491373,0.62830354,118340.0,118330.0,0.4724]
[1752893491566,0.62830354,118340.0,118330.0,0.72566]
[1752893491765,0.62830354,118340.0,118330.0,0.36486]
[1752893491973,0.62830354,118340.0,118330.0,0.72566]
[1752893492373,1.12830354,118340.0,118330.0,0.72566]
[1752893493069,0.8100585,118340.0,118330.0,1.05367542]
[1752893493369,1.12830354,118340.0,118330.0,1.09440542]
[1752893497276,0.96918102,118340.0,118330.0,1.09440542]
[1752893498085,1.03002815,118340.0,118330.0,1.09440542]
[1752893498271,0.87090563,118340.0,118330.0,1.09440542]
[1752893498471,1.03002815,118340.0,118330.0,1.09440542]
[1752893498667,0.96918102,118340.0,118330.0,0.9670029]
[1752893498872,0.96918102,118340.0,118330.0,1.12612542]
[1752893499573,0.96918102,118340.0,118330.0,0.9670029]
[1752893499772,0.96918102,118340.0,118330.0,1.12612542]
[1752893499978,1.03000679,118340.0,118330.0,1.12612542]
[1752893500477,1.03000679,118340.0,118330.0,0.9670029]
[1752893500678,1.03000679,118340.0,118330.0,1.12612542]
[1752893500878,1.18912931,118340.0,118330.0,1.12612542]
[1752893501578,1.03000679,118340.0,118330.0,1.12612542]
[1752893501775,1.18912931,118340.0,118330.0,1.09440542]
[1752893503781,1.18912931,118340.0,118330.0,0.76639]
[1752893504083,1.18912931,118340.0,118330.0,1.09440542]
[1752893504877,1.12830354,118340.0,118330.0,0.92551252]
[1752893505181,1.12830354,118340.0,118330.0,1.09440542]
[1752893505586,1.18913471,118340.0,118330.0,1.09440542]
[1752893505777,1.18913471,118340.0,118330.0,0.42918]
[1752893505986,0.3077728,118330.0,118320.0,0.6780622]
[1752893506179,0.52772818,118330.0,118320.0,0.9336522]
[1752893506580,0.52772818,118330.0,118320.0,0.9743822]
[1752893506783,0.52772818,118330.0,118320.0,1.13350472]
[1752893507181,0.52772818,118330.0,118320.0,1.16522472]
[1752893507985,0.46689532,118330.0,118320.0,1.16522472]
[1752893509585,0.46689532,118330.0,118320.0,1.32434724]
[1752893509785,0.46689532,118330.0,118320.0,1.16522472]
[1752893510586,0.46689532,118330.0,118320.0,1.0061022]
[1752893510786,0.46689532,118330.0,118320.0,1.16522472]
[1752893513388,0.46689532,118330.0,118320.0,1.0061022]
[1752893513588,0.46689532,118330.0,118320.0,1.16522472]
[1752893513887,0.46689532,118330.0,118320.0,1.0061022]
[1752893514087,0.46689532,118330.0,118320.0,1.16522472]
[1752893514888,0.46689532,118330.0,118320.0,1.32434724]
[1752893515388,0.46689532,118330.0,118320.0,1.16522472]
[1752893515789,0.46689532,118330.0,118320.0,1.12299802]
[1752893515990,0.46689532,118330.0,118320.0,0.82667802]
[1752893516190,0.46689532,118330.0,118320.0,0.95406252]
[1752893517492,0.46689532,118330.0,118320.0,1.12296962]
[1752893517791,0.46689532,118330.0,118320.0,0.95406252]
[1752893517992,0.46689532,118330.0,118320.0,1.12296962]